fUSD/lending_fUSD_20240403
["ID","MTS","AMOUNT","RATE_DAILY","PERIOD"]
[321418321,1712177906135,-157.040319,0.00052498,113]
[321418322,1712177906159,-250.0,0.000525,120]
[321418323,1712177906184,-1000.0,0.000525,120]
[321418324,1712177906207,-5000.0,0.000525,120]
[321418325,1712177906229,-1000.0,0.00052511,120]
[321418326,1712177906255,-2416.0,0.00052573,120]
[321418327,1712177906282,-9879.30852702,0.0005259,120]
[321418328,1712177906306,-2850.9372045,0.0005259,120]
[321418329,1712177906330,-529.32078117,0.0005259,120]
[321418330,1712177906354,-2815.446703,0.0005259,120]
[321418331,1712177906378,-5000.0,0.000526,120]
[321418332,1712177906401,-1000.0,0.00052602,120]
[321418333,1712177906425,-2427.19,0.00052602,120]
[321418334,1712177906449,-240.10446638,0.00052603,120]
[321418335,1712177908940,150.0,0.00040101,30]
[321418336,1712177910954,-169.928645,0.00049315,120]
[321418337,1712177911003,-1759.89553362,0.00052603,120]
[321418338,1712177911027,-1000.0,0.00052664,120]
[321418339,1712177911051,-5000.0,0.000527,120]
[321418340,1712177911074,-200.0,0.00052737,120]
[321418341,1712177911097,-151.0,0.00052795,120]
[321418342,1712177911123,-161.040319,0.00052798,113]
[321418343,1712177911146,-5000.0,0.000528,120]
[321418344,1712177911169,-1000.0,0.00052816,120]
[321418345,1712177911192,-500.0,0.000529,120]
[321418346,1712177911215,-5000.0,0.000529,120]
[321418347,1712177911240,-150.0,0.00052928,120]
[321418348,1712177911265,-1000.0,0.00052968,120]
[321418349,1712177911288,-335191.28725967,0.00053,120]
[321418350,1712177911314,-98000.0,0.00053,120]
[321418351,1712177911339,-284.57782351,0.00053,120]
[321418352,1712177911362,-800.0,0.00053,120]
[321418353,1712177911386,-1000.0,0.00053,120]
[321418354,1712177911410,-2000.0,0.00053,120]
[321418355,1712177911434,-250.0,0.00053,120]
[321418356,1712177911459,-500.0,0.00053,120]
[321418357,1712177911483,-1816.22851588,0.00053,120]
[321418358,1712177911509,-15000.0,0.00053,120]
[321418359,1712177911534,-1000.0,0.00053,120]
[321418360,1712177911558,-30163.87051452,0.00053,120]
[321418361,1712177911581,-5000.0,0.00053,120]
[321418362,1712177911605,-1000.0,0.00053,120]
[321418363,1712177911628,-1340.0,0.00053,100]
[321418364,1712177911653,-2988.05,0.00053,120]
[321418365,1712177911681,-150.0,0.00053079,120]
[321418366,1712177911706,-1000.0,0.0005312,120]
[321418367,1712177911730,-150.0,0.00053136,120]
[321418368,1712177911755,-9879.30852702,0.00053138,120]
[321418369,1712177911779,-2850.9372045,0.00053138,120]
[321418370,1712177911802,-529.32078117,0.00053138,120]
[321418371,1712177911827,-2815.446703,0.00053138,120]
[321418372,1712177911855,-1000.0,0.0005315,120]
[321418373,1712177911878,-2000.0,0.00053151,120]
[321418374,1712177911905,-157.040319,0.00053198,115]
[321418375,1712177911931,-15000.0,0.000532,120]
[321418376,1712177911956,-155.34135517,0.000532,120]
[321418377,1712177911979,-155.34135517,0.000532,120]
[321418378,1712177912002,-155.34135517,0.000532,120]
[321418379,1712177912024,-155.34135517,0.000532,120]
[321418380,1712177912048,-1000.0,0.00053272,120]
[321418381,1712177912073,-2427.19,0.00053424,120]
[321418382,1712177912097,-1000.0,0.00053425,120]
[321418383,1712177912119,-539.0,0.00053452,120]
[321418384,1712177912142,-1149.0,0.00053452,120]
[321418385,1712177912167,-553.0,0.00053452,120]
[321418386,1712177912193,-151.0,0.00053479,120]
[321418387,1712177912217,-161.040319,0.00053498,114]
[321418388,1712177912240,-1000.0,0.000535,120]
[321418389,1712177912263,-250.0,0.000535,120]
[321418390,1712177912288,-1340.0,0.000535,101]
[321418391,1712177912313,-1000.0,0.00053577,120]
[321418392,1712177912336,-539.0,0.00053589,120]
[321418393,1712177912360,-1149.0,0.00053589,120]
[321418394,1712177912385,-553.0,0.00053589,120]
[321418395,1712177912410,-10022.47731644,0.0005365,120]
[321418396,1712177912434,-9879.30852702,0.00053686,120]
[321418397,1712177912458,-2850.9372045,0.00053686,120]
[321418398,1712177912483,-529.32078117,0.00053686,120]
[321418399,1712177912506,-2815.446703,0.00053686,120]
[321418400,1712177912530,-1000.0,0.00053698,120]
[321418401,1712177912555,-2244.053,0.00053699,120]
[321418402,1712177912579,-539.0,0.00053726,120]
[321418403,1712177912605,-1149.0,0.00053726,120]
[321418404,1712177912630,-555.0,0.00053726,120]
[321418405,1712177912654,-1000.0,0.00053729,120]
[321418406,1712177912869,-2196.54786923,0.00053798,120]
[321418407,1712177912895,-150.0,0.00053802,120]
[321418408,1712177912920,-539.0,0.00053863,120]
[321418409,1712177912945,-1149.0,0.00053863,120]
[321418410,1712177912971,-1000.0,0.00053881,120]
[321418411,1712177912997,-358.01,0.000539,120]
[321418412,1712177913023,-153.32268092,0.000539,120]
[321418413,1712177913051,-1000.0,0.00053999,120]
[321418414,1712177913078,-4000.0,0.00054,120]
[321418415,1712177913103,-6338.84604515,0.00054,120]
[321418416,1712177913132,-7526.89784249,0.00054,120]
[321418417,1712177913161,-489.84,0.00054,120]
[321418418,1712177913189,-2499.98,0.00054,120]
[321418419,1712177913217,-1000.0,0.00054,120]
[321418420,1712177913243,-255.78,0.00054,120]
[321418421,1712177913272,-1576.93,0.00054,120]
[321418422,1712177913303,-2025.94589772,0.00054,120]
[321418423,1712177913331,-1000.0,0.00054,120]
[321418424,1712177913361,-150.82,0.00054,120]
[321418425,1712177913388,-10000.0,0.00054,120]
[321418426,1712177913415,-42275.37083695,0.00054,120]
[321418427,1712177913446,-224.95351368,0.00054,120]
[321418428,1712177913473,-315113.68389616,0.00054,120]
[321418429,1712177916467,3799.98129558,0.0002,2]
[321418430,1712177916940,1037.57879944,0.0002,2]
[321418431,1712177917480,-8419.276,0.0005194,120]
[321418432,1712177917506,-8419.277,0.0005194,120]
[321418433,1712177917532,-8419.277,0.0005194,120]
[321418434,1712177917558,-8419.277,0.0005194,120]
[321418435,1712177917585,-8419.277,0.0005194,120]
[321418436,1712177917610,-221.96392134,0.0005194,120]
[321418437,1712177917952,-155.34135517,0.000532,120]
[321418438,1712177918018,-7332.01104957,0.00053899,120]
[321418439,1712177918045,-192276.31901206,0.00054,120]
[321418440,1712177918069,-1340.0,0.00054,102]
[321418441,1712177918092,-539.0,0.00054,120]
[321418442,1712177918117,-889.0,0.00054,120]
[321418443,1712177918141,-1000.0,0.00054033,120]
[321418444,1712177918165,-150.0,0.00054063,120]
[321418445,1712177918189,-539.0,0.00054137,120]
[321418446,1712177918213,-889.0,0.00054137,120]
[321418447,1712177918235,-788.51267319,0.00054164,120]
[321418448,1712177918259,-151.0,0.00054164,120]
[321418449,1712177918284,-1000.0,0.00054186,120]
[321418450,1712177918308,-157.040319,0.00054198,116]
[321418451,1712177918332,-9879.30852702,0.00054234,120]
[321418452,1712177918354,-2850.9372045,0.00054234,120]
[321418453,1712177918379,-529.32078117,0.00054234,120]
[321418454,1712177918402,-2815.446703,0.00054234,120]
[321418455,1712177918426,-1000.0,0.00054246,120]
[321418456,1712177918453,-2427.19,0.00054246,120]
[321418457,1712177918478,-889.0,0.00054274,120]
[321418458,1712177918504,-150.0,0.00054335,120]
[321418459,1712177918528,-1000.0,0.00054338,120]
[321418460,1712177918553,-517.35580509,0.000544,110]
[321418461,1712177918579,-889.0,0.00054411,120]
[321418462,1712177918604,-151.0,0.00054438,120]
[321418463,1712177918629,-1000.0,0.0005449,120]
[321418464,1712177918655,-150.0,0.00054491,120]
[321418465,1712177918683,-161.040319,0.00054498,115]
[321418466,1712177918713,-264.92,0.000545,120]
[321418467,1712177918738,-638.07,0.000545,120]
[321418468,1712177918763,-611.49,0.000545,120]
[321418469,1712177918788,-529.93075515,0.000545,120]
[321418470,1712177918814,-500.0,0.000545,120]
[321418471,1712177918839,-1340.0,0.000545,103]
[321418472,1712177918863,-7000.0,0.0005452,120]
[321418473,1712177918889,-889.0,0.00054548,120]
[321418474,1712177918913,-20000.0,0.000546,120]
[321418475,1712177918942,-1000.0,0.00054642,120]
[321418476,1712177918971,-150.0,0.00054668,120]
[321418477,1712177918997,-889.0,0.00054685,120]
[321418478,1712177919023,-326568.2,0.0005469,120]
[321418479,1712177919047,-1000.0,0.000547,120]
[321418480,1712177919072,-27038.71,0.000547,120]
[321418481,1712177919097,-1115.07,0.00054767,120]
[321418482,1712177919122,-9879.8,0.00054782,120]
[321418483,1712177919146,-2851.43,0.00054782,120]
[321418484,1712177919170,-529.82,0.00054782,120]
[321418485,1712177919197,-2815.94,0.00054782,120]
[321418486,1712177919221,-500.0,0.00054794,120]
[321418487,1712177919246,-500.0,0.00054794,120]
[321418488,1712177919271,-500.0,0.00054794,120]
[321418489,1712177919301,-518.35280255,0.00054794,120]
[321418490,1712177919326,-439.85070222,0.00054794,120]
[321418491,1712177919351,-507.86137446,0.00054794,120]
[321418492,1712177919376,-510.40366289,0.00054794,120]
[321418493,1712177919402,-500.0,0.00054794,120]
[321418494,1712177919427,-164.51780944,0.00054794,120]
[321418495,1712177919457,-510.12050361,0.00054794,120]
[321418496,1712177919483,-500.0,0.00054794,120]
[321418497,1712177919508,-503.48174783,0.00054794,120]
[321418498,1712177919534,-516.18097757,0.00054794,120]
[321418499,1712177919558,-153.30865476,0.00054794,120]
[321418500,1712177919582,-502.24073019,0.00054794,120]
[321418501,1712177919606,-500.0,0.00054794,120]
[321418502,1712177919633,-501.31381906,0.00054794,120]
[321418503,1712177919658,-500.0,0.00054794,120]
[321418504,1712177919683,-204.04301499,0.00054794,120]
[321418505,1712177919710,-472.62094472,0.00054794,120]
[321418506,1712177919736,-500.0,0.00054794,120]
[321418507,1712177919762,-504.30017467,0.00054794,120]
[321418508,1712177919787,-504.49881216,0.00054794,120]
[321418509,1712177919812,-500.0,0.00054794,120]
[321418510,1712177919837,-240.50878257,0.00054794,120]
[321418511,1712177919862,-374.07299987,0.00054794,120]
[321418512,1712177919887,-500.0,0.00054794,120]
[321418513,1712177919911,-502.21007779,0.00054794,120]
[321418514,1712177919936,-500.0,0.00054794,120]
[321418515,1712177919967,-508.14750368,0.00054794,120]
[321418516,1712177919993,-515.67749522,0.00054794,120]
[321418517,1712177920017,-531.92663094,0.00054794,120]
[321418518,1712177920042,-507.66384445,0.00054794,120]
[321418519,1712177920066,-500.0,0.00054794,120]
[321418520,1712177920091,-500.0,0.00054794,120]
[321418521,1712177920116,-500.0,0.00054794,120]
[321418522,1712177920150,-505.29988277,0.00054794,120]
[321418523,1712177920176,-513.93561521,0.00054794,120]
[321418524,1712177920203,-509.7830299,0.00054794,120]
[321418525,1712177920227,-503.56489493,0.00054794,120]
[321418526,1712177920251,-508.43084077,0.00054794,120]
[321418527,1712177920276,-500.0,0.00054794,120]
[321418528,1712177920305,-506.14026944,0.00054794,120]
[321418529,1712177920331,-515.21200817,0.00054794,120]
[321418530,1712177920356,-521.9581491,0.00054794,120]
[321418531,1712177920382,-500.0,0.00054794,120]
[321418532,1712177920407,-516.69316658,0.00054794,120]
[321418533,1712177920432,-500.0,0.00054794,120]
[321418534,1712177920654,-546.4803337,0.00054794,120]
[321418535,1712177920679,-509.25005611,0.00054794,120]
[321418536,1712177920706,-500.0,0.00054794,120]
[321418537,1712177920730,-500.0,0.00054794,120]
[321418538,1712177920756,-511.24,0.00054794,120]
[321418539,1712177920780,-500.0,0.00054794,120]
[321418540,1712177920805,-500.0,0.00054794,120]
[321418541,1712177920836,-500.0,0.00054794,120]
[321418542,1712177920876,-507.38377001,0.00054794,120]
[321418543,1712177920901,-500.0,0.00054794,120]
[321418544,1712177920926,-500.0,0.00054794,120]
[321418545,1712177920955,-500.0,0.00054794,120]
[321418546,1712177920979,-500.0,0.00054794,120]
[321418547,1712177921004,-500.0,0.00054794,120]
[321418548,1712177921029,-500.0,0.00054794,120]
[321418549,1712177921054,-515.59669646,0.00054794,120]
[321418550,1712177921080,-500.0,0.00054794,120]
[321418551,1712177921106,-500.0,0.00054794,120]
[321418552,1712177921131,-500.0,0.00054794,120]
[321418553,1712177921156,-169.84024934,0.00054794,120]
[321418554,1712177921184,-871.34,0.00054794,120]
[321418555,1712177921210,-500.0,0.00054794,120]
[321418556,1712177921235,-1028.18,0.00054794,120]
[321418557,1712177921258,-500.0,0.00054794,120]
[321418558,1712177921286,-500.0,0.00054794,120]
[321418559,1712177921311,-502.14004124,0.00054794,120]
[321418560,1712177921336,-517.56558449,0.00054794,120]
[321418561,1712177921361,-500.0,0.00054794,120]
[321418562,1712177921391,-500.0,0.00054794,120]
[321418563,1712177921417,-782.49,0.00054794,120]
[321418564,1712177921444,-500.0,0.00054794,120]
[321418565,1712177921472,-509.67767544,0.00054794,120]
[321418566,1712177921498,-500.08896784,0.00054794,120]
[321418567,1712177921523,-735.93,0.00054794,120]
[321418568,1712177921549,-500.0,0.00054794,120]
[321418569,1712177921573,-508.30182175,0.00054794,120]
[321418570,1712177921598,-500.0,0.00054794,120]
[321418571,1712177921625,-500.0,0.00054794,120]
[321418572,1712177921650,-506.72465766,0.00054794,120]
[321418573,1712177921676,-539.18,0.00054794,120]
[321418574,1712177921705,-514.68298953,0.00054794,120]
[321418575,1712177921731,-500.0,0.00054794,120]
[321418576,1712177921756,-500.0,0.00054794,120]
[321418577,1712177921780,-500.0,0.00054794,120]
[321418578,1712177921804,-513.28,0.00054794,120]
[321418579,1712177921828,-500.0,0.00054794,120]
[321418580,1712177921852,-500.0,0.00054794,120]
[321418581,1712177921877,-519.70849268,0.00054794,120]
[321418582,1712177921902,-500.0,0.00054794,120]
[321418583,1712177921927,-508.64,0.00054794,120]
[321418584,1712177921952,-508.68341614,0.00054794,120]
[321418585,1712177921976,-500.0,0.00054794,120]
[321418586,1712177922002,-500.0,0.00054794,120]
[321418587,1712177922028,-500.0,0.00054794,120]
[321418588,1712177922056,-660.96,0.00054794,120]
[321418589,1712177922082,-501.72895111,0.00054794,120]
[321418590,1712177922108,-500.0,0.00054794,120]
[321418591,1712177922133,-694.62,0.00054794,120]
[321418592,1712177922160,-500.0,0.00054794,120]
[321418593,1712177922185,-500.0,0.00054794,120]
[321418594,1712177922213,-504.7156112,0.00054794,120]
[321418595,1712177922237,-735.3,0.00054794,120]
[321418596,1712177922261,-505.4501326,0.00054794,120]
[321418597,1712177922285,-500.0,0.00054794,120]
[321418598,1712177922308,-500.0,0.00054794,120]
[321418599,1712177922333,-508.72387683,0.00054794,120]
[321418600,1712177922357,-507.70012087,0.00054794,120]
[321418601,1712177922382,-666.42,0.00054794,120]
[321418602,1712177922405,-503.54126789,0.00054794,120]
[321418603,1712177922429,-500.0,0.00054794,120]
[321418604,1712177922455,-506.15817152,0.00054794,120]
[321418605,1712177922480,-500.0,0.00054794,120]
[321418606,1712177922503,-500.0,0.00054794,120]
[321418607,1712177922527,-500.0,0.00054794,120]
[321418608,1712177922552,-500.0,0.00054794,120]
[321418609,1712177922575,-584.36788201,0.00054794,120]
[321418610,1712177922599,-513.83440369,0.00054794,120]
[321418611,1712177922627,-526.52666836,0.00054794,120]
[321418612,1712177922651,-504.60884603,0.00054794,120]
[321418613,1712177922676,-181.1628868,0.00054794,120]
[321418614,1712177922702,-500.0,0.00054794,120]
[321418615,1712177922727,-500.0,0.00054794,120]
[321418616,1712177922751,-500.0,0.00054794,120]
[321418617,1712177922777,-500.0,0.00054794,120]
[321418618,1712177922805,-500.0,0.00054794,120]
[321418619,1712177922830,-500.0,0.00054794,120]
[321418620,1712177922857,-502.21341036,0.00054794,120]
[321418621,1712177922883,-500.0,0.00054794,120]
[321418622,1712177922908,-500.0,0.00054794,120]
[321418623,1712177922932,-500.0,0.00054794,120]
[321418624,1712177922960,-230.41109752,0.00054794,120]
[321418625,1712177922985,-504.38099705,0.00054794,120]
[321418626,1712177923010,-500.0,0.00054794,120]
[321418627,1712177923034,-523.1846886,0.00054794,120]
[321418628,1712177923058,-500.0,0.00054794,120]
[321418629,1712177923086,-500.0,0.00054794,120]
[321418630,1712177923112,-500.0,0.00054794,120]
[321418631,1712177923140,-645.79,0.00054794,120]
[321418632,1712177923167,-513.26817017,0.00054794,120]
[321418633,1712177923196,-590.49,0.00054794,120]
[321418634,1712177923225,-500.0,0.00054794,120]
[321418635,1712177923253,-500.0,0.00054794,120]
[321418636,1712177923280,-592.63,0.00054794,120]
[321418637,1712177923312,-500.0,0.00054794,120]
[321418638,1712177923338,-513.48225278,0.00054794,120]
[321418639,1712177923366,-500.0,0.00054794,120]
[321418640,1712177923392,-485.13806164,0.00054794,120]
[321418641,1712177923626,-506.96908767,0.00054794,120]
[321418642,1712177923652,-500.0,0.00054794,120]
[321418643,1712177923677,-295.59102705,0.00054794,120]
[321418644,1712177923706,-500.0,0.00054794,120]
[321418645,1712177923731,-500.0,0.00054794,120]
[321418646,1712177923757,-500.0,0.00054794,120]
[321418647,1712177923783,-505.92489313,0.00054794,120]
[321418648,1712177923811,-500.0,0.00054794,120]
[321418649,1712177923846,-500.0,0.00054794,120]
[321418650,1712177923880,-500.0,0.00054794,120]
[321418651,1712177923908,-512.32222869,0.00054794,120]
[321418652,1712177923937,-577.32777348,0.00054794,120]
[321418653,1712177923966,-500.0,0.00054794,120]
[321418654,1712177923993,-500.0,0.00054794,120]
[321418655,1712177924019,-500.0,0.00054794,120]
[321418656,1712177924045,-518.076014,0.00054794,120]
[321418657,1712177924072,-515.31810621,0.00054794,120]
[321418658,1712177924099,-509.10376623,0.00054794,120]
[321418659,1712177924123,-500.0,0.00054794,120]
[321418660,1712177924148,-516.70237293,0.00054794,120]
[321418661,1712177924173,-500.0,0.00054794,120]
[321418662,1712177924200,-503.23163506,0.00054794,120]
[321418663,1712177924225,-500.0,0.00054794,120]
[321418664,1712177924250,-500.0,0.00054794,120]
[321418665,1712177924275,-500.0,0.00054794,120]
[321418666,1712177924305,-500.0,0.00054794,120]
[321418667,1712177924330,-500.0,0.00054794,120]
[321418668,1712177924355,-500.0,0.00054794,120]
[321418669,1712177924388,-500.0,0.00054794,120]
[321418670,1712177924414,-509.23777003,0.00054794,120]
[321418671,1712177924439,-355.35908407,0.00054794,120]
[321418672,1712177924467,-670.75,0.00054794,120]
[321418673,1712177924491,-500.0,0.00054794,120]
[321418674,1712177924516,-500.0,0.00054794,120]
[321418675,1712177924542,-500.0,0.00054794,120]
[321418676,1712177924567,-500.0,0.00054794,120]
[321418677,1712177924593,-514.62328702,0.00054794,120]
[321418678,1712177924619,-280.30826805,0.00054794,120]
[321418679,1712177924644,-510.27,0.00054794,120]
[321418680,1712177924671,-500.0,0.00054794,120]
[321418681,1712177924700,-500.0,0.00054794,120]
[321418682,1712177924726,-500.0,0.00054794,120]
[321418683,1712177924751,-500.0,0.00054794,120]
[321418684,1712177924776,-500.0,0.00054794,120]
[321418685,1712177924804,-500.0,0.00054794,120]
[321418686,1712177924831,-511.4,0.00054794,120]
[321418687,1712177924858,-500.0,0.00054794,120]
[321418688,1712177924884,-500.0,0.00054794,120]
[321418689,1712177924915,-500.0,0.00054794,120]
[321418690,1712177924942,-678.06,0.00054794,120]
[321418691,1712177924969,-500.0,0.00054794,120]
[321418692,1712177924996,-503.77477784,0.00054794,120]
[321418693,1712177925022,-580.93,0.00054794,120]
[321418694,1712177925051,-558.23,0.00054794,120]
[321418695,1712177925079,-500.0,0.00054794,120]
[321418696,1712177925107,-507.301996,0.00054794,120]
[321418697,1712177925133,-500.0,0.00054794,120]
[321418698,1712177925159,-500.0,0.00054794,120]
[321418699,1712177925188,-500.0,0.00054794,120]
[321418700,1712177925216,-500.0,0.00054794,120]
[321418701,1712177925246,-500.0,0.00054794,120]
[321418702,1712177925273,-519.57031299,0.00054794,120]
[321418703,1712177925302,-507.7971728,0.00054794,120]
[321418704,1712177925330,-2265.69,0.00054794,120]
[321418705,1712177925358,-500.0,0.00054794,120]
[321418706,1712177925384,-516.03922594,0.00054794,120]
[321418707,1712177925412,-526.19,0.00054794,120]
[321418708,1712177925438,-500.0,0.00054794,120]
[321418709,1712177925466,-500.0,0.00054794,120]
[321418710,1712177925492,-506.5283126,0.00054794,120]
[321418711,1712177925519,-500.0,0.00054794,120]
[321418712,1712177925545,-533.61281662,0.00054794,120]
[321418713,1712177925570,-500.0,0.00054794,120]
[321418714,1712177925596,-505.69730223,0.00054794,120]
[321418715,1712177925623,-500.0,0.00054794,120]
[321418716,1712177925650,-500.0,0.00054794,120]
[321418717,1712177925676,-503.78792511,0.00054794,120]
[321418718,1712177925702,-500.0,0.00054794,120]
[321418719,1712177925728,-500.0,0.00054794,120]
[321418720,1712177925754,-505.01692492,0.00054794,120]
[321418721,1712177925781,-524.79127473,0.00054794,120]
[321418722,1712177925808,-611.92,0.00054794,120]
[321418723,1712177925835,-508.75863162,0.00054794,120]
[321418724,1712177925862,-500.0,0.00054794,120]
[321418725,1712177925888,-513.17087907,0.00054794,120]
[321418726,1712177925916,-500.0,0.00054794,120]
[321418727,1712177925943,-500.0,0.00054794,120]
[321418728,1712177925972,-500.0,0.00054794,120]
[321418729,1712177925999,-525.51817211,0.00054794,120]
[321418730,1712177926024,-500.0,0.00054794,120]
[321418731,1712177926053,-500.0,0.00054794,120]
[321418732,1712177926079,-500.0,0.00054794,120]
[321418733,1712177926106,-500.0,0.00054794,120]
[321418734,1712177926133,-500.0,0.00054794,120]
[321418735,1712177926158,-500.0,0.00054794,120]
[321418736,1712177926185,-500.0,0.00054794,120]
[321418737,1712177926213,-504.73249031,0.00054794,120]
[321418738,1712177926239,-500.0,0.00054794,120]
[321418739,1712177926267,-562.39,0.00054794,120]
[321418740,1712177926295,-500.0,0.00054794,120]
[321418741,1712177926321,-520.73032224,0.00054794,120]
[321418742,1712177926346,-511.28656155,0.00054794,120]
[321418743,1712177926371,-500.0,0.00054794,120]
[321418744,1712177926397,-500.0,0.00054794,120]
[321418745,1712177926422,-500.0,0.00054794,120]
[321418746,1712177926448,-500.0,0.00054794,120]
[321418747,1712177926681,-504.19529844,0.00054794,120]
[321418748,1712177926708,-500.0,0.00054794,120]
[321418749,1712177926734,-500.0,0.00054794,120]
[321418750,1712177926759,-593.44,0.00054794,120]
[321418751,1712177926785,-536.99,0.00054794,120]
[321418752,1712177926811,-500.0,0.00054794,120]
[321418753,1712177926835,-506.52811703,0.00054794,120]
[321418754,1712177926862,-516.89928555,0.00054794,120]
[321418755,1712177926887,-510.27749448,0.00054794,120]
[321418756,1712177926913,-500.0,0.00054794,120]
[321418757,1712177926938,-500.0,0.00054794,120]
[321418758,1712177926966,-500.0,0.00054794,120]
[321418759,1712177926991,-503.92121871,0.00054794,120]
[321418760,1712177927016,-500.0,0.00054794,120]
[321418761,1712177927042,-500.0,0.00054794,120]
[321418762,1712177927068,-500.0,0.00054794,120]
[321418763,1712177927094,-867.45,0.00054794,120]
[321418764,1712177927119,-500.0,0.00054794,120]
[321418765,1712177927144,-500.0,0.00054794,120]
[321418766,1712177927169,-564.29,0.00054794,120]
[321418767,1712177927194,-522.28348477,0.00054794,120]
[321418768,1712177927219,-506.7321086,0.00054794,120]
[321418769,1712177927247,-500.0,0.00054794,120]
[321418770,1712177927272,-500.0,0.00054794,120]
[321418771,1712177927302,-500.0,0.00054794,120]
[321418772,1712177927326,-500.0,0.00054794,120]
[321418773,1712177927350,-500.0,0.00054794,120]
[321418774,1712177927377,-500.0,0.00054794,120]
[321418775,1712177927402,-510.06673725,0.00054794,120]
[321418776,1712177927427,-500.0,0.00054794,120]
[321418777,1712177927453,-500.0,0.00054794,120]
[321418778,1712177927479,-500.0,0.00054794,120]
[321418779,1712177927504,-663.47,0.00054794,120]
[321418780,1712177927530,-500.0,0.00054794,120]
[321418781,1712177927555,-500.0,0.00054794,120]
[321418782,1712177927580,-500.0,0.00054794,120]
[321418783,1712177927604,-500.0,0.00054794,120]
[321418784,1712177927629,-500.0,0.00054794,120]
[321418785,1712177927655,-500.0,0.00054794,120]
[321418786,1712177927681,-500.0,0.00054794,120]
[321418787,1712177927707,-500.0,0.00054794,120]
[321418788,1712177927733,-517.51838716,0.00054794,120]
[321418789,1712177927762,-500.0,0.00054794,120]
[321418790,1712177927787,-500.0,0.00054794,120]
[321418791,1712177927813,-503.94151964,0.00054794,120]
[321418792,1712177927840,-507.90938434,0.00054794,120]
[321418793,1712177927866,-500.0,0.00054794,120]
[321418794,1712177927894,-500.0,0.00054794,120]
[321418795,1712177927922,-508.13503615,0.00054794,120]
[321418796,1712177927949,-611.3,0.00054794,120]
[321418797,1712177927977,-500.0,0.00054794,120]
[321418798,1712177928005,-500.0,0.00054794,120]
[321418799,1712177928033,-500.0,0.00054794,120]
[321418800,1712177928060,-440.72411263,0.00054794,120]
[321418801,1712177928087,-720.39,0.00054794,120]
[321418802,1712177928115,-500.0,0.00054794,120]
[321418803,1712177928144,-531.23,0.00054794,120]
[321418804,1712177928170,-500.0,0.00054794,120]
[321418805,1712177928197,-559.19,0.00054794,120]
[321418806,1712177928229,-500.0,0.00054794,120]
[321418807,1712177928255,-534.48868957,0.00054794,120]
[321418808,1712177928282,-532.18,0.00054794,120]
[321418809,1712177928312,-500.0,0.00054794,120]
[321418810,1712177928338,-500.0,0.00054794,120]
[321418811,1712177928368,-500.0,0.00054794,120]
[321418812,1712177928397,-500.0,0.00054794,120]
[321418813,1712177928424,-303.39878205,0.00054794,120]
[321418814,1712177928452,-504.27181023,0.00054794,120]
[321418815,1712177928480,-505.56110231,0.00054794,120]
[321418816,1712177928507,-500.0,0.00054794,120]
[321418817,1712177928534,-505.40498685,0.00054794,120]
[321418818,1712177928561,-500.0,0.00054794,120]
[321418819,1712177928586,-500.0,0.00054794,120]
[321418820,1712177928614,-500.0,0.00054794,120]